bitfinex/quotes_ETHUSD_20250620
["timestamp","ask_amount","ask_price","bid_price","bid_amount"]
[1750448557996,2.87791629,2410.4,2410.3,4.14886113]
[1750448558197,9.81791629,2410.4,2410.3,4.14886113]
[1750448558419,9.81791629,2410.4,2410.3,4.20616113]
[1750448558583,0.27365181,2410.4,2410.3,5.11637946]
[1750448558786,11.46730932,2410.8,2410.3,5.11637946]
[1750448558787,1.46730932,2410.8,2410.7,4.14817272]
[1750448558980,0.4157412,2411.2,2411.1,4.14748455]
[1750448559222,0.4157412,2411.2,2411.1,5.85076402]
[1750448559440,2.9087412,2411.2,2411.1,4.97699538]
[1750448559645,2.493,2411.2,2411.1,4.14748455]
[1750448559793,5.1986,2411.2,2411.0,4.14752015]
[1750448560127,12.493,2411.1,2411.0,4.14752015]
[1750448560503,21.316,2411.1,2411.0,4.14752015]
[1750448561442,2.493,2411.6,2411.5,4.14679659]
[1750448561589,1.835,2411.7,2411.6,4.14662464]
[1750448561987,0.8135,2412.2,2412.1,4.1457651]
[1750448562224,10.01983399,2412.2,2412.1,4.1457651]
[1750448562423,1.835,2412.2,2412.1,4.1457651]
[1750448562629,8.823,2412.2,2412.1,4.1457651]
[1750448563224,1.835,2412.2,2412.1,4.2030651]
[1750448563426,8.822,2412.2,2412.1,4.2030651]
[1750448563626,0.779,2412.6,2412.3,4.14538823]
[1750448563831,0.779,2412.6,2412.1,4.2030651]
[1750448563832,0.779,2412.6,2412.5,4.14507772]
[1750448563995,9.601,2412.6,2412.5,4.14507772]
[1750448564195,19.601,2412.6,2412.5,4.14507772]
[1750448564524,9.601,2412.6,2412.5,4.14507772]
[1750448564733,2.614,2412.6,2412.5,4.14507772]
[1750448564929,9.601,2412.6,2412.5,4.14507772]
[1750448565428,9.601,2412.6,2412.4,4.14516307]
[1750448565632,9.6581,2412.6,2412.4,4.14516307]
[1750448566034,10.0,2412.5,2412.4,4.14516307]
[1750448566801,10.0,2412.5,2412.3,4.14535313]
[1750448567015,10.0,2412.5,2412.4,4.14524954]
[1750448569849,10.0,2412.5,2411.8,0.8814]
[1750448569850,10.0619,2412.5,2411.8,0.8814]
[1750448570144,7.0459,2412.4,2412.2,4.14557553]
[1750448572009,0.7896,2412.2,2412.1,4.1457651]
[1750448572239,7.7726,2412.2,2412.1,4.1457651]
[1750448572599,6.983,2412.2,2412.1,4.1457651]
[1750448573040,4.14330632,2413.6,2412.2,0.0585]
[1750448573334,0.7896,2412.8,2412.7,4.14473411]
[1750448573632,17.7716,2412.8,2412.7,4.14473411]
[1750448574311,10.7896,2412.8,2412.5,4.1449064]
[1750448574511,17.8335,2412.8,2412.6,4.14488328]
[1750448576236,17.8335,2412.8,2412.2,2.80891485]
[1750448576535,0.0619,2412.7,2412.5,4.14506154]
[1750448576742,18.815,2412.6,2412.5,4.14506154]
[1750448577842,18.815,2412.6,2412.5,4.20356154]
[1750448578805,0.21648848,2413.2,2413.1,4.14404707]
[1750448579004,10.99529268,2414.8,2413.5,4.14336026]
[1750448579005,1.831,2413.6,2413.5,4.14336026]
[1750448579239,2.86024626,2413.8,2413.7,4.14301694]
[1750448579442,19.6238,2413.8,2413.7,4.14301694]
[1750448580269,8.811,2413.8,2413.7,4.14301694]
[1750448580419,1.831,2414.1,2414.0,4.14250207]
[1750448580622,8.811,2414.1,2414.0,4.14250207]
[1750448581243,18.811,2414.1,2414.0,4.20100207]
[1750448581664,8.811,2414.1,2414.0,4.20100207]
[1750448581864,8.811,2414.1,2414.0,5.11378576]
[1750448582030,8.809,2414.1,2414.0,5.11378576]
[1750448584172,1.83,2414.6,2414.5,4.14164423]
[1750448584370,11.5556,2415.1,2414.5,4.14164423]
[1750448584570,1.83,2414.9,2414.8,4.1411297]
[1750448584777,11.83,2414.9,2414.8,4.1411297]
[1750448584988,11.83,2414.9,2414.7,4.14116203]
[1750448585168,11.5556,2415.1,2414.1,4.20083047]
[1750448585493,6.03288665,2414.9,2414.3,4.14198732]
[1750448585631,6.03288665,2414.9,2414.4,4.14164998]
[1750448585632,0.0619,2414.8,2414.4,4.14164998]
[1750448585827,0.0619,2414.8,2414.2,0.72986858]
[1750448585828,7.0389,2414.7,2414.6,4.1414727]
[1750448586072,6.977,2414.7,2414.6,4.1414727]
[1750448587480,6.977,2414.7,2414.6,4.96978066]
[1750448588334,6.977,2414.7,2414.6,4.1414727]
[1750448589777,1.83,2414.9,2414.8,4.1411297]
[1750448589976,6.974,2415.1,2415.0,4.14076156]
[1750448590187,1.83,2415.5,2415.4,4.14010101]
[1750448590478,8.804,2415.5,2415.4,4.14010101]
[1750448591478,1.83,2415.5,2415.4,4.19860101]
[1750448591776,8.804,2415.5,2415.4,4.14010101]
[1750448591979,11.297,2415.5,2415.4,4.14010101]
[1750448592172,21.297,2415.5,2415.4,4.14010101]
[1750448593290,12.493,2415.4,2414.9,0.7522]
[1750448593584,12.493,2415.4,2415.3,4.14027242]
[1750448594338,8.804,2415.5,2415.3,4.14027242]
[1750448594537,8.804,2415.5,2415.4,4.14010101]
[1750448595256,10.0,2415.4,2415.3,4.14018966]
[1750448595479,11.297,2415.5,2415.2,4.14033872]
[1750448595683,10.0,2415.4,2415.3,4.14013199]
[1750448600049,14.322,2415.5,2415.4,4.19900101]
[1750448600282,21.292,2415.5,2415.4,4.19900101]
[1750448600508,12.493,2415.5,2415.4,4.14010101]
[1750448600703,19.463,2415.5,2415.4,4.14010101]
[1750448601923,19.84371371,2415.5,2415.4,4.14010101]
[1750448602276,10.0,2415.4,2415.3,4.14017609]
[1750448602612,9.463,2415.5,2415.4,4.14010101]
[1750448602909,9.84371308,2415.5,2415.4,4.14010101]
[1750448603284,9.84368944,2415.5,2415.4,4.14010101]
[1750448603827,44.14044385,2415.2,2413.7,0.40995194]
[1750448603969,4.14371916,2413.3,2412.5,0.51]
[1750448604166,0.0567,2413.5,2412.1,0.8244]
[1750448604167,0.0567,2412.9,2412.1,0.8244]
[1750448604384,12.493,2412.7,2412.6,4.14490591]
[1750448604699,13.25432964,2412.7,2412.1,0.8244]
[1750448604900,10.49946807,2412.6,2412.1,1.26252283]
[1750448605103,0.38073405,2412.5,2412.3,4.14532393]
[1750448605308,7.62472377,2412.4,2412.3,4.14532393]
[1750448605669,7.244,2412.4,2412.3,4.14532393]
[1750448611791,7.244,2412.4,2412.2,4.14551704]
[1750448612009,7.244,2412.4,2412.3,4.14542138]
[1750448612179,7.244,2412.4,2412.2,4.14548205]
[1750448612593,7.244,2412.4,2412.3,4.14542138]
[1750448613201,8.0609,2412.4,2412.3,4.14542138]
[1750448613487,7.244,2412.4,2412.3,4.14542138]
[1750448619230,7.244,2412.4,2411.6,2.2434]
[1750448619231,17.244,2412.4,2411.6,0.0589]
[1750448619426,17.244,2412.4,2412.2,4.14548013]
[1750448619725,17.244,2412.4,2412.3,4.14542138]
[1750448620632,10.0,2412.3,2411.8,0.0589]
[1750448620829,7.244,2412.4,2412.2,4.14557808]
[1750448621532,7.244,2412.4,2412.3,4.14542138]
[1750448628101,7.2924,2412.4,2412.3,4.14542138]
[1750448629448,40.0,2412.2,2411.5,0.7962]
[1750448629604,14.91834711,2412.0,2411.7,4.14634078]
[1750448630360,14.91834711,2412.0,2411.8,4.14626298]
[1750448630633,7.147,2411.9,2411.8,4.14626298]
[1750448631025,10.0,2412.3,2412.2,4.14559323]
[1750448631336,17.52755643,2412.3,2412.1,4.14567187]
[1750448631531,0.3817786,2412.2,2412.1,4.14567187]
[1750448631736,0.76374114,2412.2,2412.1,4.14567187]
[1750448631906,17.147,2412.3,2412.2,4.14559323]
[1750448632105,17.91073674,2412.3,2412.2,4.14559323]
[1750448632760,17.91071951,2412.3,2412.2,4.14559323]
[1750448633435,17.91070288,2412.3,2412.1,4.14566654]
[1750448633635,0.99468391,2412.2,2412.1,3.87600705]
[1750448633841,0.99468391,2412.2,2412.1,3.47152246]
[1750448634506,17.147,2412.3,2412.1,3.47152246]
[1750448634712,1.00089376,2412.2,2412.1,3.47152246]
[1750448635143,1.00088165,2412.2,2412.1,3.47152246]
[1750448635354,1.00088165,2412.2,2412.0,4.14584753]
[1750448635507,18.12787349,2412.1,2412.0,4.14584753]
[1750448635848,18.12783404,2412.1,2412.0,4.14584753]
[1750448636146,18.12776605,2412.1,2412.0,4.14584753]
[1750448637147,18.1277789,2412.1,2412.0,4.14584753]
[1750448637348,18.12773155,2412.1,2412.0,4.14584753]
[1750448638348,18.12773396,2412.1,2412.0,4.14584753]
[1750448639153,18.12773569,2412.1,2412.0,4.14584753]
[1750448639445,18.12773334,2412.1,2412.0,4.14584753]
[1750448640024,18.12773334,2412.1,2412.0,4.20344753]
[1750448640220,11.00086589,2412.1,2412.0,4.14584753]
[1750448640425,18.11386589,2412.1,2412.0,4.20344753]
[1750448641032,18.11395227,2412.1,2412.0,4.20344753]
[1750448641433,18.10804572,2412.1,2412.0,5.03534753]
[1750448641647,18.10833021,2412.1,2412.0,5.92366472]
[1750448641848,8.10833021,2412.1,2412.0,5.92366472]
[1750448642049,8.10836027,2412.1,2412.0,5.92366472]
[1750448642229,8.10878119,2412.1,2412.0,5.92366472]
[1750448642425,7.107,2412.1,2412.0,5.96512036]
[1750448642630,7.87766853,2412.1,2412.0,5.92366472]
[1750448642928,8.10884816,2412.1,2412.0,5.92366472]
[1750448643564,8.10884816,2412.1,2412.0,5.03534753]
[1750448644059,8.10884816,2412.1,2412.0,4.14584753]
[1750448645030,8.10879063,2412.1,2412.0,4.14584753]
[1750448645756,7.33817963,2412.1,2412.0,4.14584753]
[1750448645961,8.10885153,2412.1,2412.0,4.14584753]
[1750448646134,8.10887729,2412.1,2412.0,4.14584753]
[1750448646335,8.10889126,2412.1,2412.0,4.20344753]
[1750448647064,8.10889525,2412.1,2412.0,4.20344753]
[1750448647262,8.10889525,2412.1,2412.0,4.14584753]
[1750448647762,8.10892997,2412.1,2412.0,4.14584753]
[1750448648257,8.10898543,2412.1,2412.0,4.14584753]
[1750448648460,7.72358755,2412.1,2412.0,4.14584753]
[1750448648662,8.10908261,2412.1,2412.0,4.14584753]
[1750448649062,7.87783746,2412.1,2412.0,4.14584753]
[1750448649261,8.10908758,2412.1,2412.0,4.14584753]
[1750448649567,0.0584,2412.0,2411.9,4.14610887]
[1750448649760,1.00208758,2412.0,2411.9,4.14610887]
[1750448649962,1.00207319,2412.0,2411.9,4.14610887]
[1750448650859,1.0020443,2412.0,2411.9,4.14610887]
[1750448651454,7.1554,2412.1,2412.0,4.14593698]
[1750448651649,8.15739603,2412.1,2412.0,4.14593698]
[1750448651963,18.15739603,2412.1,2412.0,4.14593698]
[1750448652138,18.15750375,2412.1,2411.9,4.14603551]
[1750448652345,1.00210375,2412.0,2411.9,4.14603551]
[1750448653230,1.00229617,2412.0,2411.9,4.14603551]
[1750448654263,11.06085186,2412.0,2411.8,4.14623643]
[1750448654466,1.00245186,2411.9,2411.8,4.14623643]
[1750448655267,1.00241839,2411.9,2411.8,4.14623643]
[1750448655867,0.77108497,2411.9,2411.8,4.14623643]
[1750448656074,1.00238233,2411.9,2411.8,4.14623643]
[1750448656923,10.0,2412.0,2411.9,4.14610887]
[1750448658075,10.61678811,2412.0,2411.9,4.14610887]
[1750448658275,11.00228941,2412.0,2411.9,4.14610887]
[1750448658519,11.0022668,2412.0,2411.9,4.14610887]
[1750448658989,11.00228811,2412.0,2411.9,4.14610887]
[1750448659726,10.61680191,2412.0,2411.9,4.14610887]
[1750448660023,11.00232073,2412.0,2411.9,4.14610887]
[1750448660202,11.0024057,2412.0,2411.8,4.14616942]
[1750448660513,17.049,2411.9,2411.8,4.14616942]
[1750448662937,17.042,2411.9,2411.8,4.20496942]
[1750448664128,1.9484,2412.1,2412.0,4.14593698]
[1750448664341,7.41970911,2412.1,2412.0,4.20473698]
[1750448664493,17.41970911,2412.1,2412.0,4.20473698]
[1750448665019,7.41970911,2412.1,2412.0,4.20473698]
[1750448665731,17.41970911,2412.1,2412.0,4.20473698]
[1750448666031,17.034,2412.1,2412.0,4.20473698]
[1750448666429,17.034,2412.1,2412.0,4.95523698]
[1750448667093,17.034,2412.1,2412.0,4.20473698]
[1750448667694,17.034,2412.1,2412.0,4.14593698]
[1750448668433,17.034,2412.1,2412.0,4.20473698]
[1750448668635,7.034,2412.1,2412.0,4.20473698]
[1750448671327,1.855,2412.3,2412.2,4.14559323]
[1750448671526,9.87409965,2412.3,2412.2,4.14559323]
[1750448671827,9.48831083,2412.3,2412.2,4.14559323]
[1750448672032,9.8741393,2412.3,2412.2,4.14559323]
[1750448672191,9.87414393,2412.3,2412.2,4.14559323]
[1750448672626,9.48831546,2412.3,2412.2,4.14559323]
[1750448672828,9.87414751,2412.3,2412.2,4.14559323]
[1750448673028,9.87416983,2412.3,2412.2,4.14559323]
[1750448673219,9.87417018,2412.3,2412.2,4.14559323]
[1750448674129,10.0,2412.2,2412.1,4.14565871]
[1750448674326,10.38583455,2412.2,2412.1,4.14565871]
[1750448674525,10.3859078,2412.2,2412.1,4.14565871]
[1750448676030,10.0,2412.2,2412.1,4.14565871]
[1750448676237,10.38587098,2412.2,2412.1,4.14565871]
[1750448676538,10.38586597,2412.2,2412.1,4.14565871]
[1750448677236,10.38586542,2412.2,2412.1,4.14565871]
[1750448677698,20.70616386,2412.2,2412.0,4.14582588]
[1750448677904,17.006,2412.1,2412.0,4.14582588]
[1750448678644,17.39186086,2412.1,2412.0,4.14582588]
[1750448678840,17.006,2412.1,2412.0,4.14582588]
[1750448679528,17.39180218,2412.1,2412.0,4.14582588]
[1750448680245,17.006,2412.1,2412.0,4.14582588]
[1750448680625,17.006,2412.1,2412.0,4.20462588]
[1750448682848,17.006,2412.1,2412.0,4.14582588]
[1750448683029,17.006,2412.1,2412.0,4.20462588]
[1750448684259,1.64649999,2412.5,2412.4,4.14524954]
[1750448684461,1.64649999,2412.5,2412.4,4.20404954]
[1750448684462,2.03242553,2412.5,2412.4,4.20404954]
[1750448684607,1.64649999,2412.5,2412.4,5.00814954]
[1750448686128,1.64649999,2412.5,2412.4,4.14524954]
[1750448686832,11.70719999,2412.5,2412.1,4.1457651]
[1750448687034,17.38497239,2412.4,2412.1,4.1456695]
[1750448687211,12.81327239,2412.2,2412.0,4.14586451]
[1750448687408,2.493,2412.0,2411.9,4.14599471]
[1750448687622,22.81327239,2412.0,2411.8,4.14620013]
[1750448687822,2.493,2411.8,2411.7,4.14642713]
[1750448689942,2.5414,2411.8,2411.7,4.14642713]
[1750448691952,0.0484,2411.8,2411.7,4.14642713]
[1750448695222,0.0484,2411.8,2411.7,4.20732713]
[1750448695422,0.0484,2411.8,2411.7,5.02588819]
[1750448695637,0.0484,2411.8,2411.7,8.18653565]
[1750448695849,0.2193,2412.3,2412.2,4.92269323]
[1750448696025,0.2193,2412.3,2412.2,5.02504001]
[1750448696224,1.842,2413.0,2412.9,4.14439056]
[1750448696429,8.846,2413.0,2412.9,4.14439056]
[1750448696748,11.842,2413.0,2412.9,4.14439056]
[1750448696948,14.3957,2413.4,2413.3,4.14370364]
[1750448697151,9.61601979,2413.4,2413.3,4.14370364]
[1750448697350,18.846,2413.4,2413.3,4.14370364]
[1750448697551,19.84706258,2413.4,2413.3,4.14370364]
[1750448697851,8.846,2413.4,2413.3,4.14370364]
[1750448698847,18.846,2413.4,2413.3,4.14370364]
[1750448699248,19.26788193,2413.4,2413.3,4.14370364]
[1750448699428,19.26688193,2413.4,2413.3,4.14370364]
[1750448700121,9.26688193,2413.4,2413.3,4.14370364]
[1750448700655,9.26688193,2413.4,2413.3,4.97245791]
[1750448701155,8.845,2413.4,2413.3,4.97245791]
[1750448701452,8.845,2413.4,2413.3,4.14370364]
[1750448706558,0.793,2413.3,2412.6,2.9938]
[1750448706726,0.8327,2412.9,2412.6,4.14479489]
[1750448706924,11.334,2412.8,2412.6,4.14480538]
[1750448707281,0.0607,2412.7,2412.6,4.14480538]
[1750448707626,11.334,2412.8,2412.5,4.14506598]
[1750448707831,11.334,2412.8,2412.6,4.1449019]
[1750448708063,0.0607,2412.7,2412.5,4.14498003]
[1750448708265,7.0,2412.6,2412.5,4.14498003]
[1750448708466,7.0607,2412.6,2412.5,4.14498003]
[1750448709726,7.0,2412.6,2412.5,4.14498003]
[1750448710145,2.5537,2412.8,2412.7,4.14473411]
[1750448710342,11.3947,2412.8,2412.7,4.14473411]
[1750448710961,11.334,2412.8,2412.6,4.14483639]
[1750448711161,11.3947,2412.8,2412.7,4.14473411]
[1750448711496,11.3947,2412.8,2412.1,0.7566]
[1750448711646,0.0607,2412.4,2412.2,4.14543077]
[1750448711979,8.9017,2412.3,2412.2,4.14559323]
[1750448712737,8.9017,2412.3,2411.9,0.7566]
[1750448712738,21.334,2412.3,2411.9,0.7566]
[1750448712941,21.334,2412.3,2411.9,4.14610887]
[1750448712942,0.0607,2412.0,2411.9,4.14610887]
[1750448713246,17.0607,2412.0,2411.9,4.14610887]
[1750448714637,17.0,2412.0,2411.9,4.14610887]
[1750448716147,17.4178697,2412.0,2411.9,4.14610887]
[1750448717635,17.4784697,2412.0,2411.8,4.14617778]
[1750448717834,17.4784697,2412.0,2411.9,4.14610887]
[1750448718450,17.4784697,2412.0,2411.8,4.14618778]
[1750448718772,17.4784697,2412.0,2411.9,4.14610887]
[1750448719481,0.4178697,2412.0,2411.9,4.14610887]
[1750448719647,1.842,2412.3,2412.2,4.14542734]
[1750448719848,18.842,2412.3,2412.2,4.14542734]
[1750448720049,8.842,2412.3,2412.2,4.14542734]
[1750448720255,8.842,2412.3,2412.2,4.20192734]
[1750448720840,8.842,2412.3,2412.2,4.14542734]
[1750448721379,8.9026,2412.3,2412.1,4.14563866]
[1750448721568,8.9026,2412.3,2412.2,4.14559323]
[1750448721945,8.842,2412.3,2412.2,4.14559323]
[1750448723360,0.41977797,2412.4,2412.3,4.14542138]
[1750448723682,8.841,2412.4,2412.3,4.14542138]
[1750448724090,1.842,2412.4,2412.3,5.39474889]
[1750448724294,12.84152701,2412.9,2412.8,4.14456233]
[1750448724501,29.624,2412.9,2412.8,4.14456233]
[1750448724660,13.04023553,2412.9,2412.8,4.14456233]
[1750448724862,7.41423553,2412.9,2412.7,4.14464467]
[1750448725208,0.41523553,2412.9,2412.8,4.14456233]
[1750448725408,7.41423553,2412.9,2412.8,4.14456233]
[1750448725557,6.999,2412.9,2412.8,4.14456233]
[1750448725760,6.999,2412.9,2412.6,4.14480226]
[1750448726007,0.0606,2412.8,2412.6,4.14480226]
[1750448726210,0.0606,2412.8,2412.7,4.14473411]
[1750448726362,7.0596,2412.8,2412.7,4.14473411]
[1750448726790,6.999,2412.8,2412.7,4.14473411]
[1750448726991,9.492,2412.8,2412.7,4.14473411]
[1750448727901,9.492,2412.8,2412.7,4.20123411]
[1750448728060,2.493,2412.9,2412.8,4.14456233]
[1750448728400,9.491,2412.9,2412.8,4.14456233]
[1750448731096,2.493,2412.9,2412.5,2.2434]
[1750448731295,8.836,2412.8,2412.7,4.14473411]
[1750448731806,8.836,2412.8,2412.7,4.20123411]
[1750448732014,4.332,2413.1,2413.0,4.14421881]
[1750448732311,8.836,2413.1,2413.0,4.20071881]
[1750448736911,8.834,2413.1,2413.0,4.20071881]
[1750448737081,8.834,2413.1,2413.0,6.20158158]
[1750448737404,1.839,2413.1,2413.0,6.20158158]
[1750448737608,8.834,2413.1,2413.0,6.20158158]
[1750448738432,8.834,2413.1,2413.0,5.39318158]
[1750448738578,11.327,2413.1,2413.0,4.14421881]
[1750448738776,2.493,2412.9,2412.4,3.0681]
[1750448738990,6.995,2412.8,2412.7,4.14473411]
[1750448742809,10.3023,2412.8,2412.5,4.14497756]
[1750448743026,0.0606,2412.7,2412.4,4.14515677]
[1750448743215,2.493,2412.5,2412.4,4.14515677]
[1750448743507,9.5476,2412.5,2412.4,4.14515677]
[1750448744130,9.487,2412.5,2412.4,4.14515677]
[1750448744494,9.487,2412.5,2412.2,4.14559323]
[1750448744829,0.0606,2412.4,2412.3,4.14542138]
[1750448745989,9.5476,2412.5,2412.4,4.14524954]
[1750448746909,9.5476,2412.5,2412.3,4.14529668]
[1750448748423,9.5476,2412.5,2412.4,4.14524954]
[1750448748586,0.0576,2412.5,2412.4,4.14524954]
[1750448748930,11.3836,2412.5,2412.4,4.14524954]
[1750448749432,11.3836,2412.5,2412.3,4.14533716]
[1750448749597,11.3836,2412.5,2412.4,4.14524954]
[1750448749996,11.3836,2412.5,2412.3,4.14535639]
[1750448750302,2.493,2412.3,2412.2,4.14551136]
[1750448750617,9.5436,2412.3,2412.2,4.14551136]
[1750448750991,9.486,2412.3,2412.2,4.14551136]
[1750448753553,2.493,2412.8,2412.7,4.14473411]
[1750448753750,9.486,2412.8,2412.7,4.14473411]
[1750448754847,2.493,2412.8,2412.7,4.14473411]
[1750448755151,9.5267,2412.8,2412.7,4.14473411]
[1750448756005,9.5267,2412.8,2412.7,4.20383411]
[1750448761245,0.0417,2412.8,2412.7,4.93433411]
[1750448761422,7.0327,2412.8,2412.7,5.82830361]
[1750448762840,7.0327,2412.8,2412.7,8.07170361]
[1750448763439,7.0327,2412.8,2412.7,7.17773411]
[1750448764021,9.5257,2412.8,2412.7,6.38813411]
[1750448764418,9.5257,2412.8,2412.7,6.44723411]
[1750448765163,7.0327,2412.8,2412.7,6.44723411]
[1750448765459,7.0317,2412.8,2412.7,4.14473411]
[1750448765956,9.5247,2412.8,2412.7,4.14473411]
[1750448767054,7.0317,2412.8,2412.7,5.11254361]
[1750448767561,7.0307,2412.8,2412.7,5.11254361]
[1750448768753,7.0307,2412.8,2412.7,5.86294361]
[1750448769121,0.0417,2412.8,2412.7,5.86294361]
[1750448770837,10.785,2413.8,2413.3,4.14370364]
[1750448770838,2.493,2413.4,2413.3,4.14370364]
[1750448771043,9.481,2413.5,2413.4,0.0591]
[1750448771454,9.481,2413.5,2413.4,4.20258992]
[1750448771864,6.988,2413.5,2413.4,4.20258992]
[1750448772068,6.988,2413.5,2413.4,4.14348992]
[1750448772383,0.0576,2413.4,2413.0,4.14414953]
[1750448772552,0.0576,2413.4,2412.7,0.9087095]
[1750448772879,0.0576,2413.4,2413.1,4.14404572]
[1750448773092,0.0576,2413.4,2413.2,4.14386898]
[1750448773239,0.0576,2413.4,2413.1,4.14399353]
[1750448773634,0.0576,2413.4,2413.0,4.1441405]
[1750448774080,0.0576,2413.2,2413.1,4.14404542]
[1750448775135,11.3736,2413.2,2413.1,4.14404542]
[1750448776078,11.316,2413.2,2413.1,4.14404542]
[1750448776639,11.3777,2413.2,2413.1,4.14404542]
[1750448777673,2.5547,2413.0,2412.9,4.14430856]
[1750448778181,2.493,2413.0,2412.9,4.14430856]
[1750448780048,0.7914,2413.1,2413.0,4.14421881]
[1750448780049,2.493,2413.1,2413.0,4.14421881]
[1750448781190,4.329,2413.2,2413.1,4.14404707]
[1750448781399,11.315,2413.2,2413.1,4.14404707]
[1750448782485,2.493,2414.4,2414.3,4.14198732]
[1750448782788,10.31075685,2414.4,2414.3,4.14198732]
[1750448782975,0.0617,2414.3,2413.8,4.1428453]
[1750448783284,3.32476509,2414.3,2414.2,4.14207703]
[1750448783466,11.76171163,2414.3,2414.2,4.14207703]
[1750448783855,11.3767,2414.3,2414.2,4.14207703]
[1750448784300,2.63006366,2414.5,2414.4,4.14181577]
[1750448784559,2.493,2415.3,2415.2,4.14044385]
[1750448784786,9.597,2415.3,2415.2,4.14044385]
[1750448786691,2.5547,2415.8,2415.6,4.13961161]
[1750448786895,0.7618,2415.9,2415.8,4.13941551]
[1750448787066,1.895,2416.0,2415.9,4.13924417]
[1750448787267,9.02,2416.0,2415.9,4.13924417]
[1750448787991,9.0817,2416.0,2415.9,4.13924417]
[1750448788292,9.02,2416.0,2415.8,4.13938309]
[1750448788496,9.0817,2416.0,2415.9,4.13924417]
[1750448788795,0.21622366,2416.8,2414.7,17.122]
[1750448788796,0.96922366,2416.8,2415.8,0.8315]
[1750448788958,1.9567,2416.5,2415.9,4.13924417]
[1750448789294,0.753,2417.1,2417.0,4.13736036]
[1750448789606,17.891,2417.1,2417.0,4.13736036]
[1750448789811,1.895,2417.2,2417.1,4.13718919]
[1750448789961,9.032,2417.2,2417.1,4.13718919]
[1750448790575,1.895,2417.4,2417.3,4.13681882]
[1750448790775,9.0897,2417.4,2417.3,4.13681882]
[1750448791758,9.0897,2417.4,2417.2,4.13695674]
[1750448791993,9.0897,2417.4,2417.3,4.13684689]
[1750448792692,9.0897,2417.4,2417.1,4.1371251]
[1750448792895,9.0897,2417.4,2417.3,4.13684689]
[1750448793091,0.0617,2417.4,2417.3,4.13684689]
[1750448793397,9.016,2417.4,2417.3,4.13684689]
[1750448796489,9.0777,2417.4,2417.3,4.13684689]
[1750448796689,10.7886,2417.3,2416.8,4.13757301]
[1750448796899,10.0,2417.1,2416.6,4.13793345]
[1750448797083,7.116,2417.0,2416.5,4.13813515]
[1750448797401,0.0617,2416.8,2416.7,4.13787396]
[1750448797765,1.893,2416.9,2416.7,4.13787396]
[1750448797965,1.893,2416.9,2416.8,4.13770274]
[1750448799107,1.893,2416.9,2416.8,4.19680274]
[1750448799108,9.013,2416.9,2416.8,4.19680274]
[1750448799600,7.12,2416.9,2416.8,4.19680274]
[1750448799902,7.12,2416.9,2416.8,5.11094041]
[1750448800102,1.893,2417.4,2417.3,4.13684689]
[1750448800304,9.015,2417.4,2417.3,4.13684689]
[1750448800677,10.778,2417.9,2417.2,0.0591]
[1750448800878,1.9547,2417.7,2417.4,4.13654974]
[1750448801078,11.893,2417.7,2417.3,4.13676172]
[1750448801302,11.893,2417.7,2417.3,4.13669513]
[1750448801506,0.0617,2417.6,2417.2,4.13694158]
[1750448801695,10.778,2417.9,2416.9,4.19663154]
[1750448801890,4.379,2417.6,2417.5,4.13650465]
[1750448804107,4.379,2417.7,2417.6,4.13633355]
[1750448804317,11.496,2417.7,2417.6,4.13633355]
[1750448804869,9.594,2417.7,2417.6,4.13633355]
[1750448805316,11.893,2417.8,2417.6,4.13617096]
[1750448805634,7.1677,2417.7,2417.5,4.13638551]
[1750448805795,1.893,2417.8,2417.7,4.13616246]
[1750448806000,9.003,2417.8,2417.7,4.13616246]
[1750448807138,1.893,2417.8,2417.7,4.13616246]
[1750448807438,9.005,2417.8,2417.7,4.13616246]
[1750448807633,9.005,2417.8,2417.7,5.46610061]
[1750448808941,9.005,2417.8,2417.2,0.8314]
[1750448809253,9.005,2417.8,2417.3,4.13667655]
[1750448809254,0.0623,2417.7,2417.3,4.13667655]
[1750448809602,0.0623,2417.7,2417.4,4.13667191]
[1750448809822,0.0623,2417.7,2417.3,4.13677775]
[1750448810137,0.0623,2417.7,2417.4,4.13667497]
[1750448810770,8.993,2417.6,2417.4,4.13656826]
[1750448810918,8.993,2417.6,2417.5,4.13650465]
[1750448811654,2.70204836,2417.8,2417.7,4.13616246]
[1750448811655,0.21604836,2417.8,2417.7,4.13616246]
[1750448811798,17.31204836,2417.8,2417.7,4.13616246]
[1750448812008,0.8073,2417.3,2417.0,4.13726091]
[1750448812255,9.003,2417.2,2416.9,4.1374256]
[1750448812548,9.003,2417.2,2416.9,4.13745468]
[1750448812701,9.003,2417.2,2417.0,4.13734104]
[1750448812902,9.003,2417.2,2416.9,4.13743402]
[1750448813246,9.003,2417.2,2417.0,4.13735213]
[1750448813800,0.38310937,2417.1,2417.0,4.13736036]
[1750448814222,0.38310937,2417.1,2416.8,4.13764889]
[1750448814223,9.003,2417.2,2416.8,4.13770274]
[1750448814432,0.38323598,2417.1,2416.8,4.13770274]
[1750448814755,0.38323598,2417.1,2416.6,0.7798]
[1750448814756,0.38323598,2417.0,2416.6,0.7798]
[1750448814902,7.53223598,2416.9,2416.7,4.13778803]
[1750448815107,7.149,2416.9,2416.8,4.13770274]
[1750448815359,7.53223657,2416.9,2416.8,4.13770274]
[1750448816007,0.21604836,2417.8,2416.8,4.96525049]
[1750448816354,0.7641,2417.6,2417.3,4.13682838]
[1750448816559,0.76845591,2417.5,2417.3,4.13682838]
[1750448816840,2.30025486,2417.4,2417.2,4.13691787]
[1750448817055,7.54424455,2417.3,2416.9,4.13736909]
[1750448817254,0.38424455,2417.2,2417.1,4.13718919]
[1750448817420,0.38423847,2417.2,2417.1,4.13718919]
[1750448817844,0.38423847,2417.2,2417.1,4.19618919]
[1750448818057,0.76929087,2417.2,2417.1,4.13718919]
[1750448818217,7.93129087,2417.2,2417.1,4.13718919]
[1750448818805,7.93129087,2417.2,2416.9,4.13745769]
[1750448819011,7.93129087,2417.2,2416.7,4.13779888]
[1750448819012,0.0623,2417.0,2416.7,4.13779888]
[1750448819223,0.76929087,2416.9,2416.8,4.13758212]
[1750448819541,0.83159087,2416.9,2416.7,4.13780807]
[1750448819743,7.94026132,2416.8,2416.7,4.13780807]